bitfinex-derivatives/quotes_ETHF0:USTF0_20250212
["timestamp","ask_amount","ask_price","bid_price","bid_amount"]
[1739379560688,2.359,2652.8,2652.3,44.01345686]
[1739379561086,3.11289,2652.8,2652.3,3.21345686]
[1739379561282,2.359,2652.8,2652.3,3.21345686]
[1739379561480,2.347,2652.8,2652.3,3.96746686]
[1739379562088,2.344,2652.9,2652.3,3.21345686]
[1739379562693,2.344,2652.9,2652.3,3.96747686]
[1739379563094,2.344,2652.9,2652.3,3.21345686]
[1739379563291,2.344,2652.9,2652.6,3.96174]
[1739379563602,3.2078,2653.3,2652.3,3.21345686]
[1739379563894,2.39664578,2653.2,2652.3,3.21345686]
[1739379564094,0.75395,2652.6,2651.8,3.2078]
[1739379564295,2.347,2652.5,2651.8,3.96195]
[1739379564497,2.347,2652.5,2651.9,0.75413]
[1739379564697,3.2078,2652.9,2651.8,3.2078]
[1739379564899,0.75392,2652.7,2652.0,0.75408]
[1739379565200,2.342,2652.7,2652.1,3.96186]
[1739379565494,0.00565686,2652.6,2652.5,3.2078]
[1739379565689,0.00565686,2652.6,2652.5,0.75397]
[1739379566289,0.7537,2653.5,2652.5,6.0]
[1739379566486,3.2078,2653.6,2652.9,3.2078]
[1739379566688,3.2078,2653.6,2652.6,3.96171]
[1739379566689,0.06463595,2653.5,2652.6,3.96171]
[1739379566900,0.81832595,2653.5,2652.9,3.2078]
[1739379567192,0.75369,2653.5,2652.9,3.2078]
[1739379567391,3.2078,2653.6,2652.9,3.2078]
[1739379567599,0.8183229,2653.5,2652.9,3.2078]
[1739379567799,0.75369,2653.5,2652.9,3.2078]
[1739379567995,3.2078,2653.6,2652.9,3.2078]
[1739379567996,0.75376,2653.3,2652.9,3.2078]
[1739379568190,2.336,2653.4,2652.8,3.2078]
[1739379568498,0.75387,2652.9,2652.4,3.2078]
[1739379568799,0.75386,2652.9,2652.4,3.2078]
[1739379569002,2.334,2652.8,2652.4,3.2078]
[1739379569300,0.06464942,2652.7,2652.1,0.00565686]
[1739379569600,3.27244942,2652.6,2652.1,0.00565686]
[1739379569800,3.96185,2652.2,2652.1,0.00565686]
[1739379570103,4.02649942,2652.2,2652.1,0.00565686]
[1739379570296,10.02649942,2652.2,2652.1,0.00565686]
[1739379570490,13.86656295,2652.2,2650.5,3.2078]
[1739379570799,3.2078,2651.6,2650.4,3.2078]
[1739379570999,3.2078,2651.0,2650.5,40.8]
[1739379571201,0.75449,2650.7,2650.5,40.8]
[1739379571389,2.338,2650.9,2650.5,40.8]
[1739379571588,0.06470712,2650.8,2650.5,40.8]
[1739379571796,0.81917712,2650.8,2650.5,40.8]
[1739379571996,0.00565686,2650.9,2650.5,40.8]
[1739379572198,0.00565686,2650.9,2650.5,44.0078]
[1739379572397,0.00565686,2650.9,2650.8,3.2078]
[1739379573198,0.00565686,2650.9,2650.8,3.96225]
[1739379573401,0.75411,2652.0,2651.0,0.75437]
[1739379573700,3.2078,2652.4,2651.7,3.2078]
[1739379573898,3.2078,2652.4,2652.0,3.2078]
[1739379574499,20.50495,2652.6,2652.0,3.2078]
[1739379574698,0.75396,2652.6,2652.0,3.2078]
[1739379574899,0.75399,2652.5,2652.1,3.2078]
[1739379575099,2.332,2652.7,2652.1,3.2078]
[1739379575300,0.06465904,2652.6,2651.9,0.00565686]
[1739379576007,0.75405,2652.3,2651.9,0.00565686]
[1739379576198,0.75404,2652.3,2651.9,0.00565686]
[1739379576399,0.75401,2652.4,2651.9,0.00565686]
[1739379576602,3.2078,2652.5,2651.9,3.21345686]
[1739379576902,0.75411,2652.0,2651.9,0.00565686]
[1739379577205,2.38866603,2652.0,2650.8,3.2078]
[1739379577404,0.75422,2651.6,2651.1,3.2078]
[1739379578200,0.81895745,2651.5,2651.1,3.2078]
[1739379578409,3.08129,2651.4,2651.1,0.00565686]
[1739379578609,0.75433,2651.2,2651.1,0.00565686]
[1739379578807,0.81901679,2651.2,2651.1,0.00565686]
[1739379579002,0.81901679,2651.2,2651.1,40.80565686]
[1739379579205,6.81901679,2651.2,2651.1,40.80565686]
[1739379579602,6.81901679,2651.2,2651.1,0.00565686]
[1739379579803,0.81901679,2651.2,2651.1,0.00565686]
[1739379580104,7.95055679,2651.2,2650.1,44.0078]
[1739379580309,0.75448,2650.7,2650.1,44.0078]
[1739379580512,2.38368679,2650.6,2650.1,44.0078]
[1739379580815,2.319,2650.6,2650.1,44.0078]
[1739379581000,3.2078,2650.5,2650.1,40.80565686]
[1739379581206,2.319,2650.6,2650.1,40.80565686]
[1739379581409,3.27250989,2650.5,2650.1,40.80565686]
[1739379581609,0.75462,2650.2,2650.1,40.80565686]
[1739379581809,0.81932989,2650.2,2650.1,40.80565686]
[1739379582808,4.02712989,2650.2,2650.1,40.80565686]
[1739379583312,4.02712989,2650.2,2650.1,0.00565686]
[1739379583511,10.02712989,2650.2,2650.1,0.00565686]
[1739379583710,10.02712989,2650.2,2650.1,40.80565686]
[1739379583911,2.36770989,2650.2,2650.1,40.80565686]
[1739379584113,2.303,2650.3,2650.1,40.80565686]
[1739379584814,3.2078,2650.8,2650.1,40.80565686]
[1739379585017,2.36270598,2650.7,2650.1,40.80565686]
[1739379585208,0.06470598,2650.6,2650.1,40.80565686]
[1739379585717,2.298,2650.7,2650.1,40.80565686]
[1739379586408,0.75455,2650.5,2650.1,40.80565686]
[1739379586917,2.298,2650.7,2650.1,40.80565686]
[1739379587110,0.7546,2650.3,2650.1,40.80565686]
[1739379587308,0.75458,2650.4,2650.1,40.80565686]
[1739379588012,0.06471388,2650.3,2650.1,40.80565686]
[1739379588509,0.81933978,2650.2,2650.1,40.80565686]
[1739379588709,4.02713978,2650.2,2650.1,40.80565686]
[1739379590108,3.96242,2650.2,2650.1,40.80565686]
[1739379590308,4.02714511,2650.2,2650.1,40.80565686]
[1739379590914,4.02714872,2650.2,2650.1,40.80565686]
[1739379593513,4.02714533,2650.2,2650.1,40.80565686]
[1739379593814,14.62125886,2650.2,2650.1,40.80565686]
[1739379594111,8.62125886,2650.2,2650.1,40.80565686]
[1739379594314,14.62125886,2650.2,2650.1,0.00565686]
[1739379594613,13.86663886,2650.2,2648.9,1.1618]
[1739379594813,0.75487,2649.4,2649.3,40.8]
[1739379595008,3.00787,2649.4,2649.3,40.8]
[1739379595713,2.253,2649.4,2649.3,40.8]
[1739379595907,3.00785,2649.4,2649.3,40.8]
[1739379596112,2.253,2649.4,2649.3,40.8]
[1739379596511,2.245,2649.5,2649.3,40.8]
[1739379596810,0.00565686,2649.6,2649.4,3.2078]
[1739379597014,0.00565686,2649.6,2649.3,40.8]
[1739379597518,0.76046686,2649.6,2649.3,40.8]
[1739379597817,0.00565686,2649.6,2649.4,3.2078]
[1739379598411,2.246,2649.5,2649.3,40.8]
[1739379598616,3.00083,2649.5,2649.3,40.8]
[1739379598809,2.246,2649.5,2649.3,40.8]
[1739379599512,2.246,2649.5,2649.4,3.2078]
[1739379599917,3.2078,2650.3,2649.4,3.2078]
[1739379600214,0.75473,2649.8,2649.7,3.2078]
[1739379600410,3.2078,2650.0,2649.7,40.8]
[1739379600608,2.30572682,2649.9,2649.7,40.8]
[1739379600807,2.99458,2650.4,2649.8,3.96252]
[1739379601019,0.06471348,2650.3,2649.8,4.3189]
[1739379601223,0.00565686,2650.4,2650.1,3.2078]
[1739379601518,19.755,2651.0,2650.5,0.75452]
[1739379601709,19.755,2651.0,2650.7,3.2078]
[1739379601910,5.15761353,2651.9,2650.7,3.2078]
[1739379602114,3.05785534,2651.8,2651.1,3.2078]
[1739379602312,2.99317,2651.8,2651.1,3.8055]
[1739379602507,3.47342975,2652.2,2651.1,3.8055]
[1739379602707,0.00565686,2651.7,2651.4,3.2078]
[1739379602912,0.00565686,2651.7,2651.5,1.31045]
[1739379603217,2.238,2652.2,2651.5,0.5562]
[1739379603413,2.238,2652.2,2651.9,3.2078]
[1739379603719,2.238,2652.2,2651.2,0.00565686]
[1739379603909,0.06466822,2652.1,2651.2,0.00565686]
[1739379604110,0.06466822,2652.2,2651.9,3.2078]
[1739379604310,3.2078,2652.9,2651.9,3.2078]
[1739379604620,3.2078,2652.3,2651.6,3.2078]
[1739379604822,0.75418,2651.8,2651.6,3.2078]
[1739379605021,7.80191353,2652.3,2651.6,3.2078]
[1739379605022,3.2078,2652.3,2651.6,3.2078]
[1739379605316,1.8852,2652.1,2651.2,0.00565686]
[1739379605519,0.7543,2651.3,2651.2,0.00565686]
[1739379605714,10.05391353,2651.5,2649.8,3.74485952]
[1739379605910,4.59411353,2650.7,2649.8,0.5884]
[1739379606117,5.53348664,2650.6,2649.8,0.5884]
[1739379606416,5.4698,2650.6,2649.8,3.7962]
[1739379606617,6.22432,2650.6,2649.8,4.3769]
[1739379606821,0.00565686,2650.5,2649.9,0.00565686]
[1739379607017,0.00565686,2650.5,2650.1,3.2078]
[1739379607222,0.00565686,2650.5,2650.4,3.2078]
[1739379607414,3.2078,2651.6,2650.4,9.2078]
[1739379607616,2.267,2652.0,2651.4,3.2078]
[1739379607818,3.02009,2652.1,2651.5,40.8]
[1739379608123,19.765,2652.2,2651.5,41.3528]
[1739379608320,0.75408,2652.1,2651.5,41.3528]
[1739379608517,3.4815571,2653.0,2651.8,3.2078]
[1739379608720,0.06466123,2652.9,2652.7,3.2078]
[1739379609023,0.75362,2653.8,2652.8,0.75386]
[1739379609321,2.274,2654.0,2653.3,3.2078]
[1739379609517,0.06462469,2653.9,2653.3,3.2078]
[1739379609719,3.2078,2653.6,2652.9,3.2078]
[1739379609929,3.27242469,2653.5,2652.8,0.5512]
[1739379610120,2.33562469,2653.4,2652.5,0.00565686]
[1739379610319,0.06462469,2653.3,2652.5,0.00565686]
[1739379610728,0.75386,2652.9,2652.5,0.00565686]
[1739379610929,0.7539,2652.8,2652.5,0.00565686]
[1739379611221,0.75394,2652.6,2652.5,0.00565686]
[1739379611418,0.81859764,2652.6,2652.5,0.00565686]
[1739379611620,0.75405,2652.2,2651.6,3.8127]
[1739379611816,2.268,2652.1,2651.6,3.8127]
[1739379612218,2.268,2652.1,2652.0,3.2078]
[1739379612414,2.269,2652.5,2652.0,3.2078]
[1739379612719,3.2078,2652.9,2652.3,3.2078]
[1739379612922,0.75366,2653.6,2652.6,3.2078]
[1739379613218,0.00565686,2652.9,2652.6,3.7767]
[1739379613424,2.27465686,2652.9,2652.6,0.5689]
[1739379613728,2.27465686,2652.9,2652.6,3.7767]
[1739379614023,2.27465686,2652.9,2652.6,0.5689]
[1739379614712,0.00565686,2652.9,2652.6,3.7767]
[1739379614922,0.00565686,2652.9,2652.6,4.53062]
[1739379615116,0.00565686,2652.9,2652.7,0.5669]
[1739379615317,0.00565686,2652.9,2652.7,1.32079]
[1739379615516,0.00565686,2652.9,2652.7,0.5669]
[1739379615723,0.00565686,2652.9,2652.7,1.3208]
[1739379615920,0.00565686,2652.9,2652.8,0.75388]
[1739379616322,0.5705,2654.1,2652.8,6.0]
[1739379616521,22.9638,2654.2,2652.7,5.16101353]
[1739379616522,2.32761878,2654.0,2653.4,3.2078]
[1739379616824,2.264,2654.1,2653.7,3.2078]
[1739379617020,3.01751,2654.1,2653.7,3.2078]
[1739379617439,2.264,2654.1,2654.0,3.2078]
[1739379617631,3.01442,2654.5,2653.7,3.96142]
[1739379617922,0.75343,2654.4,2653.7,3.7617]
[1739379618127,2.259,2654.6,2654.0,40.8]
[1739379618317,0.75362,2653.7,2653.6,0.00565686]
[1739379618513,3.7607,2654.5,2653.6,0.00565686]
[1739379618723,2.271,2654.2,2653.7,44.0078]
[1739379618925,2.272,2654.4,2653.7,44.76141]
[1739379619127,2.272,2654.4,2653.8,0.5675]
[1739379619422,0.06460927,2654.3,2653.8,0.5675]
[1739379619618,3.2078,2654.2,2653.6,0.00565686]
[1739379619817,5.34773353,2653.7,2653.6,6.86e-06]
[1739379620018,6.9307228,2653.7,2652.5,3.2078]
[1739379620226,22.9558,2653.9,2652.4,41.3957]
[1739379620227,2.272,2653.6,2653.1,3.2078]
[1739379620520,2.272,2653.6,2652.6,3.2078]
[1739379620521,0.06462534,2653.5,2652.6,3.2078]
[1739379620723,0.75381,2653.1,2652.4,0.5957]
[1739379621020,9.68599353,2653.7,2652.4,0.5957]
[1739379621021,3.02383,2653.0,2652.4,0.5957]
[1739379621223,3.02948686,2653.0,2652.5,0.00565686]
[1739379621429,2.27565686,2653.0,2652.6,3.2078]
[1739379621627,0.00565686,2653.0,2652.6,3.2078]
[1739379621824,0.00565686,2653.0,2652.9,3.2078]
[1739379622127,0.00565686,2653.0,2652.6,3.2078]
[1739379622322,0.75389,2652.8,2652.5,0.00565686]
[1739379622528,3.2078,2652.9,2652.5,0.00565686]
[1739379622728,0.75394,2652.6,2652.5,0.00565686]
[1739379622923,2.33764732,2652.6,2652.5,0.00565686]
[1739379623126,0.00565686,2653.0,2652.5,0.00565686]
[1739379623731,3.27244781,2652.9,2652.5,0.00565686]
[1739379623926,0.75394,2652.6,2652.5,0.00565686]
[1739379624135,0.75409,2652.1,2651.5,3.2078]
[1739379624428,0.75417,2651.8,2651.5,3.2078]
[1739379624623,2.276,2651.7,2650.7,3.2078]
[1739379624824,0.0646826,2651.6,2650.7,3.2078]
[1739379625024,2.278,2651.5,2651.1,3.2078]
[1739379625229,2.278,2651.5,2651.4,3.2078]
[1739379625424,0.5828,2652.0,2651.1,3.2078]
[1739379625629,0.00565686,2651.7,2651.1,3.2078]
[1739379625829,0.00565686,2651.7,2651.4,3.2078]
[1739379626025,0.00565686,2651.7,2651.5,0.75423]
[1739379626225,23.70975,2652.6,2651.5,0.5957]
[1739379626430,0.75398,2652.5,2652.0,3.2078]
[1739379626726,23.70975,2652.6,2652.0,3.2078]
[1739379627232,2.277,2652.7,2652.3,3.2078]
[1739379627630,0.00565686,2652.6,2652.3,3.2078]
[1739379628233,0.75402,2652.3,2652.2,0.00565686]
[1739379628928,0.00565686,2652.6,2652.2,0.00565686]
[1739379628929,2.269,2652.4,2652.2,0.00565686]
[1739379629328,0.00565686,2652.6,2652.3,3.2078]
[1739379629736,2.27,2653.3,2652.4,0.6095]
[1739379629938,3.02374,2653.3,2652.8,3.2078]
[1739379630235,0.5798,2653.4,2652.9,40.8]
[1739379630236,1.33351,2653.4,2652.9,40.8]
[1739379630430,0.5798,2653.4,2652.9,40.8]
[1739379630629,0.5574,2653.9,2653.1,3.2078]
[1739379630823,0.5574,2653.9,2653.1,3.96158]
[1739379631029,0.75359,2653.8,2653.2,0.75376]
[1739379631229,0.75361,2653.8,2653.2,0.75376]
[1739379631431,0.75361,2653.8,2653.1,3.96157]
[1739379631731,2.8224,2653.9,2653.1,3.352]
[1739379631938,0.75368,2653.6,2653.1,3.352]
[1739379632132,2.8224,2653.9,2653.1,3.352]
[1739379632337,0.75373,2653.4,2653.1,0.1442]
[1739379632639,2.81953554,2654.9,2653.4,1.88423]
[1739379632831,2.81953554,2654.9,2653.2,1.88441]
[1739379632832,3.2078,2654.6,2653.9,3.96135]
[1739379633231,3.2078,2654.6,2654.0,0.00565686]
[1739379633431,2.273,2654.9,2654.0,3.21345686]
[1739379633628,6.23409,2654.9,2654.3,3.2078]
[1739379633837,5.4808,2654.9,2654.3,3.2078]
[1739379634035,2.267,2654.8,2654.3,3.2078]
[1739379634235,3.02032,2654.8,2654.3,3.2078]
[1739379635143,2.267,2654.8,2654.3,3.2078]
[1739379635635,7.80191353,2654.6,2654.0,0.00565686]
[1739379635836,0.75347,2654.3,2654.0,0.00565686]
[1739379636033,0.75347,2654.3,2653.5,1.222]
[1739379636034,3.2078,2654.3,2653.5,1.222]
[1739379636237,3.2078,2654.0,2653.5,1.222]
[1739379636438,0.75365,2653.6,2653.5,1.222]
[1739379636733,0.75377,2653.2,2653.1,1.6518]
[1739379636938,5.4688,2653.2,2652.4,0.3016]
[1739379637138,7.80191353,2652.9,2652.0,3.2078]
[1739379637328,3.2078,2652.3,2651.7,1.5913]
[1739379637538,2.264,2652.2,2651.7,1.5913]
[1739379637728,2.264,2652.2,2651.7,1.7613]
[1739379637936,0.75416,2651.8,2651.7,1.7613]
[1739379638139,0.75416,2651.8,2651.7,1.76695686]
[1739379638436,0.75416,2651.8,2651.7,0.17565686]
[1739379638635,6.75416,2651.8,2651.7,0.17565686]
[1739379638837,6.81834408,2651.8,2651.7,0.17565686]
[1739379639243,6.75416,2651.8,2651.7,0.17565686]
[1739379639535,6.8183463,2651.8,2651.7,0.17565686]
[1739379639743,0.75439,2651.1,2650.4,3.2078]
[1739379639947,3.2078,2651.4,2650.4,3.2078]
[1739379640145,2.257,2651.3,2650.5,40.8]
[1739379640345,3.2078,2651.4,2650.5,42.3091]
[1739379640642,2.256,2651.2,2650.5,42.3091]
[1739379640840,3.2078,2651.6,2650.6,4.59411353]
[1739379641035,0.00565686,2651.2,2651.1,4.59411353]
[1739379641340,0.2810508,2652.4,2651.4,0.75428]
[1739379641536,0.75398,2652.5,2651.5,0.5947]
[1739379641742,0.75398,2652.5,2652.4,40.8]
[1739379641943,3.96178,2652.5,2652.4,40.8]
[1739379642130,6.31094829,2652.5,2652.4,40.8]
[1739379642335,2.287,2652.6,2652.4,40.8]
[1739379642535,0.00565686,2652.7,2652.4,40.8]
[1739379642946,3.21345686,2652.7,2652.4,40.8]
[1739379643144,0.81810039,2652.6,2652.4,40.8]
[1739379643340,9.21345686,2652.7,2652.2,0.00565686]
[1739379643648,3.96182,2652.3,2652.2,0.00565686]
[1739379643942,4.02597641,2652.3,2652.2,0.00565686]
[1739379644440,10.02599156,2652.3,2652.2,0.00565686]
[1739379644633,3.2078,2652.3,2652.2,40.80565686]
[1739379645042,0.00565686,2652.7,2652.2,54.60757039]
[1739379645342,3.2078,2654.2,2652.6,7.80191353]
[1739379645642,3.271926,2654.1,2653.1,3.2078]
[1739379645845,3.2078,2653.9,2653.1,3.2078]
[1739379646042,2.316,2653.9,2653.1,3.2078]
[1739379646238,5.5248,2654.4,2653.4,3.2078]
[1739379646446,0.06411122,2654.3,2653.4,3.2078]
[1739379646741,0.06411122,2654.3,2653.4,3.8035]
[1739379646937,0.81757122,2654.3,2653.4,3.8035]
[1739379647138,3.2078,2654.1,2653.4,3.8035]
[1739379647643,0.75359,2653.9,2653.2,0.00565686]
[1739379647946,2.313,2653.8,2653.2,0.00565686]
[1739379648144,3.2078,2653.9,2653.2,0.00565686]
[1739379648647,2.315,2654.2,2653.2,0.00565686]
[1739379648648,0.7537,2653.5,2653.2,0.00565686]
[1739379648948,2.312,2653.4,2653.2,0.00565686]
[1739379649343,3.96154,2653.3,2653.2,0.00565686]
[1739379649643,3.271939,2653.3,2652.3,0.5599]
[1739379649834,3.2078,2652.9,2651.9,3.2078]
[1739379650041,3.96178,2652.5,2651.9,3.2078]
[1739379650446,0.75395,2652.6,2652.0,1.5082]
[1739379650640,2.307,2652.8,2652.0,1.5082]
[1739379650641,2.307,2652.8,2652.1,40.8]
[1739379650945,3.96177,2652.5,2652.1,40.8]
[1739379651247,2.307,2652.8,2652.2,3.2078]
[1739379651547,3.06088,2652.8,2652.2,3.2078]
[1739379651742,2.307,2652.8,2652.2,3.2078]
[1739379651947,3.96172,2652.7,2652.2,3.2078]
[1739379652138,2.307,2652.8,2652.2,3.2078]
[1739379652550,2.307,2652.8,2652.1,40.8]
[1739379652745,0.0641534,2652.7,2652.1,40.8]
[1739379653058,0.75405,2652.2,2652.1,41.083]
[1739379653352,2.298,2652.2,2652.1,41.083]
[1739379653644,2.295,2652.5,2652.1,41.083]
[1739379653851,2.298,2653.1,2652.3,3.9618]
[1739379654142,0.75383,2653.0,2652.2,0.75404]
[1739379654349,3.2078,2652.9,2652.1,41.083]
[1739379654540,0.75389,2652.8,2652.1,41.083]
[1739379654740,0.75391,2652.7,2652.1,41.083]
[1739379654951,0.75395,2652.6,2652.1,41.083]
[1739379655448,0.00565686,2653.5,2652.3,3.2078]
[1739379655657,0.75383,2653.0,2652.4,0.6019]
[1739379655841,2.297,2653.3,2652.4,0.6019]
[1739379656151,0.00565686,2653.5,2652.4,0.6019]
[1739379656152,0.0641411,2653.2,2652.4,0.6019]
[1739379656344,0.75353,2654.1,2653.4,0.75369]
[1739379656544,3.2078,2654.4,2653.5,3.8097]
[1739379656741,3.2078,2654.4,2653.6,40.8]
[1739379656943,4.59411353,2655.2,2654.2,3.2078]
[1739379657156,0.75322,2655.2,2654.5,3.2078]
[1739379657352,0.91225522,2655.4,2654.8,3.2078]
[1739379657651,3.2078,2655.1,2654.5,3.21345686]
[1739379657852,0.75333,2654.8,2654.5,3.21345686]
[1739379658043,0.75337,2654.6,2654.5,0.00565686]
[1739379658557,0.75334,2654.7,2654.5,0.00565686]
[1739379658848,3.2078,2654.8,2654.5,0.00565686]
[1739379658849,0.75337,2654.6,2654.5,0.00565686]
[1739379659245,2.348,2654.6,2654.5,0.00565686]
[1739379659446,3.10129,2654.9,2654.5,0.00565686]
[1739379659651,0.15909522,2655.4,2654.6,3.2078]
[1739379659952,4.59411353,2656.8,2654.9,3.2078]
[1739379660159,0.75282,2656.6,2656.1,3.2078]
[1739379660352,0.75287,2656.4,2656.1,3.2078]
[1739379660649,3.10986,2656.4,2656.1,3.213446]
[1739379660953,3.2078,2656.7,2656.1,3.213446]
[1739379661156,0.75286,2656.4,2656.1,3.213446]
[1739379661457,0.75291,2656.2,2656.1,0.005646]
[1739379661751,3.96069,2656.3,2656.1,1.511546]
[1739379662058,0.75291,2656.2,2656.1,1.511546]
[1739379662247,1.88145,2657.4,2656.1,1.511546]
[1739379662248,3.2078,2656.7,2656.1,1.511546]
[1739379662448,4.59411353,2657.2,2656.1,4.719346]
[1739379662653,3.2078,2656.7,2656.1,4.719346]
[1739379663060,3.96058,2656.7,2656.1,4.719346]
[1739379663356,2.369,2657.0,2656.1,4.719346]
[1739379663553,3.2078,2657.1,2656.4,3.2078]
[1739379663753,3.2078,2657.1,2656.7,3.2078]
[1739379664355,0.00296853,2658.0,2657.0,7.80191353]
[1739379664557,0.00296853,2658.0,2657.8,3.2078]
[1739379664745,0.00296853,2658.0,2657.8,7.80191353]
[1739379664946,0.00296853,2658.0,2657.8,3.2078]
[1739379665149,0.75249,2657.7,2657.6,0.005646]
[1739379665346,2.387,2657.7,2657.6,0.005646]
[1739379665550,2.385,2657.7,2657.6,0.005646]
[1739379665754,3.13749,2657.7,2657.6,0.005646]
[1739379666156,2.381,2657.8,2657.6,0.005646]
[1739379666354,2.381,2657.9,2657.6,0.005646]
[1739379666551,2.381,2657.9,2657.6,3.213446]
[1739379666954,0.00296853,2658.0,2657.6,9.213446]
[1739379667148,0.00296853,2658.0,2657.9,3.2078]
[1739379667356,3.2078,2660.1,2657.9,9.2078]
[1739379667556,0.75196,2659.6,2659.0,3.2078]
[1739379667755,0.75194,2659.7,2659.1,41.3877]
[1739379667958,3.2078,2659.5,2659.1,40.8]
[1739379668157,0.75204,2659.3,2659.1,40.8]
[1739379668362,3.2078,2659.5,2659.1,40.8]
[1739379668555,3.95955,2660.4,2659.4,3.95981]
[1739379668756,3.95955,2660.4,2659.1,51.39411353]
[1739379668757,0.75177,2660.3,2659.8,3.2078]
[1739379668962,0.75175,2660.3,2659.8,3.2078]
[1739379669160,2.418,2660.4,2659.8,3.2078]
[1739379669459,19.727,2661.0,2660.2,3.2078]
[1739379669855,22.9348,2661.0,2660.2,4.7114]
[1739379670164,3.95955,2660.3,2660.2,1.5036]
[1739379670370,6.46301189,2660.3,2660.2,1.5036]
[1739379670560,3.19175,2660.3,2660.2,1.5036]
[1739379670759,2.44,2660.3,2660.2,42.3036]
[1739379671064,3.2078,2661.7,2660.2,51.5114]
[1739379671267,3.2078,2661.7,2660.5,3.2078]
[1739379671268,0.06343855,2661.6,2660.5,3.2078]
[1739379671455,7.80191353,2661.3,2660.2,1.5036]
[1739379671652,3.2078,2661.0,2660.8,0.005646]
[1739379671852,3.24658,2660.9,2660.8,0.005646]
[1739379672062,2.55845327,2660.9,2660.2,1.5036]
[1739379672261,0.06345327,2660.8,2660.2,1.5036]
[1739379672559,3.2078,2661.8,2660.7,4.59411353]
[1739379672755,3.2078,2662.6,2661.6,3.2078]
[1739379672966,0.81454312,2662.5,2661.6,3.2078]
[1739379673166,0.0055734,2662.4,2661.9,3.2078]
[1739379673461,0.06341312,2662.5,2662.2,3.2078]
[1739379673860,0.06341312,2662.5,2662.2,9.2078]
[1739379674260,0.06341312,2662.5,2662.2,3.2078]
[1739379674460,0.06341312,2662.5,2662.2,3.4913]
[1739379674968,0.06341312,2662.5,2661.8,0.00563507]
[1739379675165,3.27121312,2662.5,2661.8,3.21343507]
[1739379675466,2.535,2662.4,2661.8,3.21343507]
[1739379675668,0.06341312,2662.5,2661.8,3.21343507]
[1739379675870,0.06341312,2662.5,2662.0,3.2078]
[1739379676170,3.2078,2662.4,2661.8,0.00563507]
[1739379676370,0.7513,2661.9,2661.8,0.00563507]
[1739379676558,26.39464705,2661.9,2660.2,1.5036]
[1739379676871,3.2078,2661.0,2660.4,3.2078]
[1739379677160,2.557,2660.9,2660.4,3.2078]
[1739379677368,3.2078,2661.2,2660.7,3.2078]
[1739379677665,3.2078,2661.2,2660.3,3.2078]
[1739379677963,0.00563507,2661.2,2660.9,3.2078]
[1739379678466,0.00563507,2661.2,2660.7,0.00563507]
[1739379678666,3.2078,2661.0,2660.7,0.00563507]
[1739379678867,0.75713507,2661.2,2660.7,0.00563507]
[1739379678868,2.55963507,2661.2,2660.7,0.00563507]
[1739379679166,0.75159,2660.9,2660.7,0.00563507]
[1739379679363,5.76743507,2661.2,2660.7,0.00563507]
[1739379679765,3.95941,2660.8,2660.7,5.07e-06]
[1739379679959,5.83024877,2660.8,2660.7,1.5033]
[1739379680159,5.83024877,2660.8,2659.9,40.8]
[1739379680160,0.06344877,2660.8,2659.9,40.8]
[1739379680367,2.559,2660.7,2659.9,44.0078]
[1739379680963,2.561,2660.7,2659.9,40.8]
[1739379681165,0.75184,2660.0,2659.9,40.8]
[1739379681365,0.75181,2660.1,2660.0,0.75749507]
[1739379681563,0.75181,2660.1,2658.6,0.5671]
[1739379681564,0.75195,2659.7,2658.6,0.5671]
[1739379681759,3.2078,2659.5,2658.9,3.2078]
[1739379681968,2.56,2659.4,2658.9,3.2078]
[1739379682166,0.75209,2659.1,2658.5,3.2078]
[1739379682369,2.558,2659.0,2658.5,3.2078]
[1739379682671,2.556,2659.5,2658.9,40.8]
[1739379682859,2.561,2660.1,2659.3,3.2078]
[1739379683063,2.559,2660.6,2659.6,3.2078]
[1739379683357,2.559,2660.7,2659.9,3.2078]
[1739379683772,0.00563507,2660.3,2659.9,3.2078]
[1739379684070,0.00563507,2660.3,2659.9,0.00563507]
[1739379684261,0.00563507,2660.3,2660.2,3.2078]
[1739379684461,3.2078,2661.3,2660.2,3.2078]
[1739379684660,19.694,2661.5,2660.8,3.95939]
[1739379684868,7.79332737,2662.4,2660.9,40.8]
[1739379685163,0.75122,2662.2,2661.6,3.2078]
[1739379685468,2.556,2662.3,2661.3,3.2078]
[1739379685769,0.75129,2662.0,2661.6,0.00563507]
[1739379686065,0.00563507,2662.2,2661.6,3.21343507]
[1739379686365,0.00563507,2662.2,2661.9,3.2078]
[1739379687571,3.2078,2662.1,2661.6,0.00563507]
[1739379687865,0.75126,2662.1,2661.6,0.00563507]
[1739379688071,0.00563507,2662.2,2661.6,3.21343507]
[1739379688260,0.00563507,2662.2,2661.9,3.2078]
[1739379688464,0.00563507,2662.2,2661.6,0.00563507]
[1739379688662,2.544,2662.1,2661.6,0.00563507]
[1739379688866,0.75133,2661.8,2661.6,0.00563507]
[1739379689073,0.75136,2661.7,2661.6,0.00563507]
[1739379689572,3.2078,2661.9,2661.6,0.00563507]
[1739379689573,0.75126,2662.1,2661.6,0.00563507]
[1739379689771,2.542,2662.0,2661.6,0.00563507]
[1739379689971,0.00563507,2662.2,2661.6,0.00563507]
[1739379690171,0.00563507,2662.2,2661.9,3.2078]
[1739379690369,0.00563507,2662.2,2662.1,40.8]
[1739379691178,0.00563507,2662.2,2661.6,0.00563507]
[1739379691368,3.95911,2661.9,2661.6,0.00563507]
[1739379691563,5.7578,2661.9,2661.6,0.00563507]
[1739379691768,0.00563507,2662.2,2661.7,40.8]
[1739379692165,0.00563507,2662.2,2661.7,44.0078]